Cogmind - Beta 13 @@@ ROGUE MODE // 2024.04.02 @ 21:43:21 Player: Xcalibur Result: Destroyed by D-53 Grenadier with Mini Grenade Launcher Performance ------------- Evolutions (1) 500 Regions Visited (4) 800 Robots Destroyed (50) 250 Value Destroyed (996) 996 Prototype IDs (1) 20 Alien Tech Used (0) 0 Bonus (-123) -123 TOTAL SCORE: 2443 Bonus ------- Follower Combat Kills 27 Friendly Fire -150 Cogmind --------- Core Integrity 0/400 Matter 244/300 Energy 98/100 System Corruption 6% Temperature Cool (0) Movement Core (50) Location -9/Mines Parts ------- > --- POWER (1) -------- (None) > --- PROPULSION (2) --- (None) > --- UTILITY (4) ------ (None) > --- WEAPON (2) ------- (None) > --- INVENTORY (5) ---- Melee Analysis Suite Improved EM Shotgun Shock Rifle Mining Laser Katana Peak State ------------ > --- POWER ------------ Ion Engine > --- PROPULSION ------- Light Treads Light Treads > --- UTILITY ---------- Large Storage Unit Subdweller Optics Hardened Light Armor Plating Hacking Suite > --- WEAPON ----------- Beamcaster Minigun > --- INVENTORY -------- Subdweller Power Source Light Treads Light Treads Structural Scanner Hardened Light Armor Plating Hardened Medium Armor Plating Insulated Plating Improved Trap Extractor EM Pulse Gun EM Pulse Gun Shock Rifle Particle Gun Heavy Assault Rifle Improved Grenade Launcher Mining Laser [Rating: 22] Favorites ----------- Power Ion Engine Engine Ion Engine Propulsion Light Treads Treads Light Treads Wheel Wheel Utility Large Storage Unit Device Structural Scanner Storage Large Storage Unit Hackware Hacking Suite Protection Hardened Light Armor Plating Weapon Beamcaster Energy Gun Beamcaster Ballistic Gun Minigun Launcher Improved Grenade Launcher Build | -11 -10 -10 -9 -9 ------- Run | Yrd Mat Min Mat Min Slots Evolved 2 | . . . 2 . Power . | . . . . . Propulsion . | . . . . . Utility 2 | . . . 2 . Weapon . | . . . . . Parts Attached 39 | 7 6 2 11 13 Power 4 | 1 2 . . 1 Engine 4 | 1 2 . . 1 Core . | . . . . . Reactor . | . . . . . Propulsion 9 | 2 1 . 4 2 Treads 8 | 1 1 . 4 2 Leg . | . . . . . Wheel 1 | 1 . . . . Hover . | . . . . . Flight . | . . . . . Utility 14 | 2 2 . 5 5 Device 4 | 1 . . 3 . Storage 2 | 1 1 . . . Processor . | . . . . . Hackware 1 | . . . 1 . Protection 7 | . 1 . 1 5 Artifact . | . . . . . Weapon 12 | 2 1 2 2 5 Energy Gun 7 | 1 1 1 2 2 Energy Cannon . | . . . . . Ballistic Gun 4 | 1 . 1 . 2 Ballistic Cannon . | . . . . . Launcher 1 | . . . . 1 Special Weapon . | . . . . . Impact Weapon . | . . . . . Slashing Weapon . | . . . . . Piercing Weapon . | . . . . . Special Melee Weapon . | . . . . . Unidentified Prototypes 1 | . . . 1 . Parts Lost 19 | . . . 2 17 Power 2 | . . . . 2 Propulsion 5 | . . . 2 3 Utility 7 | . . . . 7 Weapon 5 | . . . . 5 Highest Loss Streak 13 | . . . 1 13 To Critical Strikes . | . . . . . Average Slot Usage (%) 97 | . 100 100 99 92 Engine 10 | . 14 14 11 6 Treads 23 | . 27 28 21 20 Device 9 | . 10 . 11 10 Storage 12 | . 14 14 11 11 Hackware 4 | . . . 10 4 Protection 11 | . 3 14 11 16 Energy Gun 12 | . 14 14 11 10 Ballistic Gun 12 | . 14 14 11 10 Naked Turns 4 | . . . . 4 Heaviest Build 47 | 13 33 36 40 47 Greatest Support 40 | 20 40 40 40 40 Greatest Overweight (x) 1 | 1 1 . 1 1 Average Overweight (x) . | . . . . . Largest Inventory Capacity 15 | 8 15 15 15 15 Average Capacity 14 | 7 14 15 15 14 Most Carried 15 | 7 15 15 15 15 Average Carried 13 | 3 11 14 14 14 Final Capacity 15 | 8 15 15 15 5 Final Carried 15 | 7 15 15 15 5 Class Distribution -------------------- 53% | Scavenger-Mutant 46% | Mutant Dominant Class ---------------- Mutant | -10/Materials Mutant | -10/Mines Scavenger-Mutant | -9/Materials Scavenger-Mutant | -9/Mines Resources | -11 -10 -10 -9 -9 ----------- Run | Yrd Mat Min Mat Min Matter Collected 1023 | 309 234 71 295 114 Remotely . | . . . . . Salvage Created 1886 | 129 472 210 581 494 Parts 95 | 8 29 9 36 13 Haulers Intercepted 1 | . 1 . . . Recyclers Shooed 3 | . . 2 1 . Parts Field Recycled . | . . . . . Retrieved Matter . | . . . . . Parts Self-Destructed . | . . . . . Prevented . | . . . . . Kills | -11 -10 -10 -9 -9 ------- Run | Yrd Mat Min Mat Min Combat Hostiles Destroyed 39 | . 8 5 12 14 Melee 1 | . . . . 1 Guns 29 | . 8 5 12 4 AOE 9 | . . . . 9 Classes Destroyed 12 | 2 6 . 2 2 Builder 1 | . . . 1 . Tunneler 3 | 3 . . . . Hauler 1 | . 1 . . . Recycler 7 | 1 2 1 1 2 Operator 2 | . 1 . 1 . Watcher 5 | . 3 . 2 . Swarmer 13 | . 5 3 5 . Grunt 11 | . 2 2 3 4 Duelist 2 | . . . . 2 Sentry 4 | . . . 4 . Subdweller 1 | . 1 . . . Assembled 9 | . . . . 9 Best Kill Streak 8 | 2 3 2 6 8 Combat Bots Only 8 | . 3 2 5 8 Max Kills in Single Turn 7 | 2 1 1 2 7 Gunslinging . | . . . . . Exploded 7 | . . . . 7 Melee 1 | . . . . 1 Uniques/NPCs Destroyed . | . . . . . Combat | -11 -10 -10 -9 -9 -------- Run | Yrd Mat Min Mat Min Hostile Shots Fired 227 | . 45 27 51 104 Missed 53 | . 18 3 13 19 Damage Taken 3011 | . 269 272 457 2013 Core 493 | . 48 15 75 355 Absorbed by Shields . | . . . . . Core Remaining (%) 87 | 100 . 74 . . Volleys Fired 156 | 13 58 15 43 27 Largest 2 | 2 2 2 2 2 Hottest 100 | 60 60 90 100 98 Shots Fired 263 | 16 90 30 80 47 Gun 260 | 16 90 30 80 44 Cannon . | . . . . . Launcher 3 | . . . . 3 Special . | . . . . . Kinetic 153 | 13 58 15 43 24 Thermal 73 | . 10 15 37 11 Explosive 3 | . . . . 3 Electromagnetic 34 | 3 22 . . 9 Robot Hit Streak 15 | 13 7 10 12 15 Robot Miss Streak 6 | 1 6 3 4 3 Penetration Max . | . . . . . Secondary Targets 2 | . . 1 . 1 Max Gunslinging Chain 1 | . . 1 . 1 Shots Hit Robots 166 | 14 52 22 47 31 Core Hits 86 | 5 23 9 21 28 Critical Kills . | . . . . . Critical Parts Destroyed 1 | . . 1 . . Critical Strikes 3 | . 1 1 1 . Destroy 3 | . 1 1 1 . Melee Attacks . | . . . . . Impact . | . . . . . Slashing . | . . . . . Piercing . | . . . . . Sneak Attacks . | . . . . . Combat Hostiles . | . . . . . Follow-up Attacks . | . . . . . Damage Inflicted 3464 | 187 654 305 940 1378 Guns 2628 | 187 654 300 932 555 Cannons . | . . . . . Explosions 807 | . . . . 807 Melee . | . . . . . Ramming 29 | . . 5 8 16 Kinetic 1306 | 147 380 147 412 220 Thermal 1089 | . 78 153 520 338 Explosive 613 | . . . . 613 Electromagnetic 427 | 40 196 . . 191 Impact . | . . . . . Slashing . | . . . . . Piercing . | . . . . . Highest Corruption 6 | . . . . 6 Average Corruption 5 | . . . . 5 Corruption Purged . | . . . . . Corruption Blocked . | . . . . . Overload Shots . | . . . . . Overflow Damage 54 | . . . . 54 Projectiles . | . . . . . Explosions 54 | . . . . 54 Melee . | . . . . . Knockbacks . | . . . . . Impact . | . . . . . Kinetic . | . . . . . Secondary . | . . . . . Self-Inflicted Damage 108 | . . . . 108 Shots 4 | . . . . 4 Rammed 4 | . . 2 1 1 Targets Rammed 5 | . . 2 1 2 Kicked . | . . . . . Crushed 1 | . . . . 1 Highest Temperature 360 | . 60 252 360 270 Average Temperature 98 | . 22 104 116 89 Received Heat Transfer 695 | . 54 129 198 314 Effects 4 | . . . 3 1 Shutdowns 1 | . . . 1 . Energy Bleed 1 | . . . . 1 Interference 1 | . . . 1 . Matter Decay 1 | . . . 1 . Siege Activations . | . . . . . Robots Corrupted . | . . . . . Combat Hostiles . | . . . . . Parts Fried 3 | . 2 . . 1 Impact Corruptions . | . . . . . Robots Melted . | . . . . . Combat Hostiles . | . . . . . Parts Melted 4 | . . 1 1 2 Heat Transferred 1957 | . 175 348 925 509 Parts Sabotaged . | . . . . . Parts Stolen . | . . . . . Parts Stripped . | . . . . . Power Chain Reactions 3 | . . . . 3 Alert | -11 -10 -10 -9 -9 ------- Run | Yrd Mat Min Mat Min Peak Influence 338 | 20 338 218 233 186 Initial 90 | . 13 63 6 90 Average 107 | 9 134 125 121 80 Maximum Alert Level 1 | . 1 1 1 . Low Security (%) 89 | 100 85 80 83 100 Level 1 10 | . 14 19 16 . Level 2 . | . . . . . Level 3 . | . . . . . Level 4 . | . . . . . Level 5 . | . . . . . High Security . | . . . . . Max Security . | . . . . . Squads Dispatched 3 | . 1 . 2 . Investigation 1 | . . . 1 . Extermination . | . . . . . Reinforcement 2 | . 1 . 1 . Assault . | . . . . . Garrison . | . . . . . Intercept . | . . . . . Searches Triggered . | . . . . . Construction Impeded . | . . . . . Haulers Reinforced . | . . . . . Active Scanning Responses . | . . . . . Cargo Convoy Interrupts . | . . . . . Stealth | -11 -10 -10 -9 -9 --------- Run | Yrd Mat Min Mat Min Distress Signals 2 | . . . 2 . Communications Jammed . | . . . . . Distress Signals . | . . . . . Times Spotted 76 | . 20 6 23 27 Peak Tracking Total 18 | . 4 3 7 18 Tactical Retreats 5 | . 2 1 2 . Traps | -11 -10 -10 -9 -9 ------- Run | Yrd Mat Min Mat Min Traps Triggered . | . . . . . Indirectly . | . . . . . Trap Hack Attempts . | . . . . . Triggered . | . . . . . Disarmed . | . . . . . Reprogrammed . | . . . . . Reused . | . . . . . Traps Extracted . | . . . . . Installed . | . . . . . Triggered . | . . . . . Machines | -11 -10 -10 -9 -9 ---------- Run | Yrd Mat Min Mat Min Machines Disabled 3 | . 1 . 2 . Max in Single Turn 1 | . 1 . 1 . Machines Repaired . | . . . . . Machines Dismantled . | . . . . . Machines Sabotaged . | . . . . . Overloaded Fab Kills . | . . . . . Hacking | -11 -10 -10 -9 -9 --------- Run | Yrd Mat Min Mat Min Machines Accessed 11 | . 2 1 6 2 Terminals 9 | . 2 . 5 2 Fabricators . | . . . . . Repair Stations . | . . . . . Recycling Units . | . . . . . Scanalyzers 1 | . . . 1 . Garrison Access . | . . . . . Total Hacks 29 | . 6 1 16 6 Successful 18 | . 4 1 9 4 Failed 11 | . 2 . 7 2 Catastrophic 3 | . . . 3 . Database Lockouts . | . . . . . Manual 15 | . 4 . 7 4 Terminals 23 | . 6 . 11 6 Fabricators . | . . . . . Repair Stations . | . . . . . Recycling Units . | . . . . . Scanalyzers 5 | . . . 5 . Garrison Access . | . . . . . Terminal Hacks 8 | . 2 1 3 2 Robot Analysis 1 | . 1 . . . Open Door 1 | . . 1 . . Unreport Threat 1 | . . . 1 . Locate Traps 1 | . . . 1 . Dispatch Records 1 | . . . 1 . Patrol Status 1 | . . . . 1 Zone Layout 2 | . 1 . . 1 Fabricator Hacks . | . . . . . Repair Station Hacks . | . . . . . Recycling Unit Hacks . | . . . . . Scanalyzer 4 | . . . 4 . Insert Component 2 | . . . 2 . Analyze 2 | . . . 2 . Garrison Access Hacks . | . . . . . Unauthorized Hacks 6 | . 2 . 2 2 Terminals 6 | . 2 . 2 2 Botnet 6 | . 2 . 2 2 Fabricators . | . . . . . Repair Stations . | . . . . . Recycling Units . | . . . . . Scanalyzers . | . . . . . Garrison Access . | . . . . . Data Cores Recovered . | . . . . . Used . | . . . . . Hacking Detections 9 | . 2 . 5 2 Full Trace Events 1 | . . . 1 . Feedback Events . | . . . . . Feedback Blocked . | . . . . . Robot Schematics Acquired . | . . . . . Robots Built . | . . . . . Authchips . | . . . . . Time . | . . . . . Total Robot Build Rating . | . . . . . Part Schematics Acquired 2 | . . . 2 . Parts Built . | . . . . . Authchips . | . . . . . Time . | . . . . . Total Part Build Rating . | . . . . . Parts Repaired . | . . . . . Time . | . . . . . Parts Recycled . | . . . . . Recycled Matter . | . . . . . Retrieved Matter . | . . . . . Retrieved Components . | . . . . . Parts Scanalyzed 2 | . . . 2 . Part Schematics Acquired 2 | . . . 2 . Parts Damaged . | . . . . . Bothacking | -11 -10 -10 -9 -9 ------------ Run | Yrd Mat Min Mat Min Used RIF Installer . | . . . . . Robots Hacked . | . . . . . Non-combat . | . . . . . Combat . | . . . . . Robot Hacks Applied . | . . . . . Relay Couplers Released . | . . . . . Fabnet Peak Effective % . | . . . . . Robots Rewired 1 | . . . . 1 Allies Hacked . | . . . . . Hacks Repelled . | . . . . . Allies | -11 -10 -10 -9 -9 -------- Run | Yrd Mat Min Mat Min Total Allies 4 | . . . . 4 Largest Group 3 | . . . . 3 Highest-Rated Group 40 | . . . . 40 Highest-Rated Ally 18 | . . . . 18 Total Orders . | . . . . . Ally Attacks 21 | . . . . 21 Total Damage 224 | . . . . 224 Kills 4 | . . . . 4 Allies Corrupted . | . . . . . Allies Melted . | . . . . . Intel | -11 -10 -10 -9 -9 ------- Run | Yrd Mat Min Mat Min Robot Analysis Total 1 | . 1 . . . Derelict Logs Recovered 4 | . . 2 . 2 Drone Launches . | . . . . . Drone Recoveries . | . . . . . Exploration | -11 -10 -10 -9 -9 ------------- Run | Yrd Mat Min Mat Min Turns Passed 3067 | 121 753 453 724 1016 Spaces Moved 1445 | 82 363 216 338 446 Core 16 | 6 . . . 10 Treads 1314 | 2 322 216 338 436 Legs . | . . . . . Wheels 115 | 74 41 . . . Hover . | . . . . . Flight . | . . . . . Fastest Speed 50 | 50 95 160 160 50 Average Speed 168 | 92 152 160 160 204 Slowest Speed 240 | 160 160 160 240 240 Overloaded Moves . | . . . . . Propulsion Burnouts . | . . . . . Robots Hopped . | . . . . . Cave-ins Triggered . | . . . . . Exploration Rate (%) 41 | 5 46 55 27 74 Regions Visited 4 Branch Regions 2 Pre-discovered Areas 2 | . . . . 2 Known Exits Taken 1 | . . . 1 . Unknown Exits Taken 3 | 1 1 1 . . Scrap Searched 3 | . . 1 . 2 Spaces Dug . | . . . . . Terrain Destroyed 39 | . . . . 39 Melee . | . . . . . Projectile . | . . . . . AOE 39 | . . . . 39 Terrain Rammed . | . . . . . Walls Destroyed . | . . . . . Machines Disabled . | . . . . . Actions | -11 -10 -10 -9 -9 --------- Run | Yrd Mat Min Mat Min Total 1833 | 108 475 298 452 500 Wait 118 | . 19 50 49 . Move 1441 | 81 362 215 337 446 Hop . | . . . . . Pick Up 41 | 7 18 6 5 5 Fast Attach 8 | 7 1 . . . Attach 15 | . . . 5 10 Detach 1 | . . . 1 . Swap 16 | . 5 2 6 3 Drop 26 | . 12 8 5 1 Fire 156 | 13 58 15 43 27 Melee . | . . . . . Ram . | . . . . . Kick . | . . . . . Crush 5 | . . 2 1 2 Escape Stasis . | . . . . . Rewire 6 | . . . . 6 Trap . | . . . . . Miscellaneous . | . . . . . Route ------- -11/Scrapyard -10/Materials (discovered 4 exits: *Mat x2 / *Min x2) -10/Mines -9/Materials -9/Mines (discovered 2 exits: [*Mat x2]) History --------- Turn | Location | Event 33 | -11/Scrapyard | Discovered new exit (range 15) 122 | -11/Scrapyard | Entered Materials 160 | -10/Materials | Discovered new exit (range 6) 301 | -10/Materials | Build established: Mutant 411 | -10/Materials | Discovered new exit (range 14) 600 | -10/Materials | Derelicts attacked the area 724 | -10/Materials | Discovered new exit (range 6) 753 | -10/Materials | Discovered new exit (range 15) 875 | -10/Materials | Entered Mines 983 | -10/Mines | Met a Derelict who couldn't figure out how to use a Trap Extractor 1062 | -10/Mines | Learned location of 1 exit from Materials 1092 | -10/Mines | Received a Rocket Launcher from a helpful Derelict 1125 | -10/Mines | Learned Materials terminal intel 1277 | -10/Mines | Discovered new exit (range 6) 1328 | -10/Mines | Entered Materials 1328 | -9/Materials | Evolved 2 slots: Utility x2 1329 | -9/Materials | Identified exit to Mines 1330 | -9/Materials | Loaded intel: 12 terminal locations 1697 | -9/Materials | Build established: Scavenger-Mutant 2052 | -9/Materials | Entered Mines 2090 | -9/Mines | Discovered new exit (range 15) 2117 | -9/Mines | Discovered new exit (range 11) 2734 | -9/Mines | Learned location of Storage (-9) 2966 | -9/Mines | Learned Materials terminal intel 3005 | -9/Mines | Assembled infested the area 3038 | -9/Mines | Assisted by bots powering up and referring to "LRC-V3" 3063 | -9/Mines | Core integrity fell below 50% 3064 | -9/Mines | Released all parts (1) 3066 | -9/Mines | Destroyed 8 combat bots 3067 | -9/Mines | Core integrity fell below 20% 3068 | -9/Mines | Destroyed by D-53 Grenadier with Mini Grenade Launcher Last Messages --------------- 03047_ as-14785 destroyed. 03048_ The unstable cave ceiling collapses. 03049_ Hrd. Light Armor Plating destroyed. 03052_ as-41971 destroyed. 03053_ Destroyed Asb. Hover Unit. 03053_ Insulated Plating destroyed. 03056_ The unstable cave ceiling collapses. 03056_ as-85203 destroyed. 03056_ Lgt. Treads destroyed. 03057_ The unstable cave ceiling collapses. 03057_ Mercenary 2a knocked back. 03058_ as-81169 destroyed. 03058_ Lgt. Treads destroyed. 03058_ Trooper 2b destroyed. 03058_ Mercenary 2a destroyed. 03059_ The unstable cave ceiling collapses. 03060_ Particle Gun destroyed. 03062_ Hvy. Assault Rifle destroyed. 03064_ Released Lrg. Storage Unit. 03068_ D-53 Grenadier destroyed. Map ----- +----------------------------------------------------+ | | | | | | | | | | | | | ?????????????????????????????????????? | | ?????????????????????????????????????? | | ?????????????????????????????????????? | | ?????????????????????????????????????? | | ????????????? ??????????????????????? | | ?????????????